bitfinex/quotes_ETHUSD_20220213
["timestamp","ask_amount","ask_price","bid_price","bid_amount"]
[1644793333335,2.1379501,2902.4,2901.8,0.3]
[1644793333535,1.27596,2902.4,2902.1,0.01016587]
[1644793333935,1.27596,2902.4,2902.1,0.87212587]
[1644793334137,1.27596,2902.4,2902.1,0.31016587]
[1644793334346,8.409e-05,2902.7,2902.1,0.31016587]
[1644793334541,8.409e-05,2902.7,2902.1,0.3]
[1644793334738,8.409e-05,2902.7,2901.8,0.3]
[1644793334942,8.409e-05,2902.7,2902.1,0.01015744]
[1644793335139,8.409e-05,2902.7,2902.2,0.86173]
[1644793335438,8.409e-05,2902.7,2902.2,1.46173]
[1644793335890,8.409e-05,2902.7,2902.3,1.46634673]
[1644793336088,8.409e-05,2902.7,2902.3,1.73376711]
[1644793336889,8.409e-05,2902.7,2901.8,0.8617047]
[1644793337091,8.409e-05,2902.7,2901.5,0.0124613]
[1644793337092,1.414,2902.6,2901.9,1.46650031]
[1644793337294,1.414,2902.6,2902.4,5.703e-05]
[1644793337295,3.5,2902.5,2902.4,5.703e-05]
[1644793337495,3.5,2902.5,2901.9,0.04063422]
[1644793337496,0.0008,2902.0,2900.6,0.27639994]
[1644793337693,0.0008,2902.0,2900.4,10.9617]
[1644793337694,6.89692,2901.8,2900.4,10.9617]
[1644793337896,5.172,2901.4,2900.4,0.0008]
[1644793338095,5.172,2901.1,2900.4,0.0008]
[1644793338300,5.172,2900.7,2900.4,0.0008]
[1644793338496,5.172,2900.5,2899.5,0.8614]
[1644793338693,4.0863,2900.6,2898.8,1.72553]
[1644793338694,5.172,2900.0,2898.8,1.72553]
[1644793338895,1.5864,2899.9,2898.9,1.46778708]
[1644793339094,1.5864,2899.9,2898.4,1.46778708]
[1644793339292,1.5864,2899.9,2898.5,1.46778708]
[1644793339529,1.5864,2899.9,2898.2,2.12258475]
[1644793339729,1.5864,2899.9,2898.6,0.0039493]
[1644793339925,1.5864,2899.9,2898.7,1.46778708]
[1644793340126,1.5864,2899.9,2898.8,0.0039493]
[1644793340127,1.7257495,2899.7,2898.8,0.0039493]
[1644793340427,1.7257495,2899.7,2898.9,1.46778708]
[1644793340428,3.89654654,2899.6,2898.9,1.46778708]
[1644793340626,3.89654654,2899.6,2898.8,0.8667493]
[1644793340627,3.89654654,2899.6,2898.8,0.8628]
[1644793340933,5.172,2899.2,2898.1,0.1724]
[1644793341129,5.172,2899.2,2898.2,1.46812001]
[1644793341130,1.72665,2899.0,2898.2,1.46812001]
[1644793341430,0.414,2898.9,2897.9,0.27639994]
[1644793341628,0.5864,2898.9,2898.0,1.47214996]
[1644793341926,0.5864,2898.9,2898.1,0.00395009]
[1644793342125,0.414,2898.9,2898.5,0.00523872]
[1644793342925,0.414,2898.9,2898.1,0.00395009]
[1644793343175,0.414,2898.9,2898.6,0.00523854]
[1644793344077,0.414,2898.9,2898.2,0.3]
[1644793344475,0.414,2898.9,2898.6,0.00523845]
[1644793345275,0.414,2898.9,2898.2,0.6]
[1644793345677,0.414,2898.9,2898.6,0.01133152]
[1644793346676,0.414,2898.9,2898.2,0.3]
[1644793346926,0.414,2898.9,2898.6,0.01133152]
[1644793347525,0.414,2898.9,2898.2,0.04533289]
[1644793347526,0.414,2898.9,2898.2,0.00666441]
[1644793347729,0.414,2898.9,2898.1,0.3]
[1644793348130,0.86308,2898.8,2897.9,0.57639994]
[1644793348328,0.86308,2898.8,2897.9,0.87639994]
[1644793348329,0.414,2898.7,2897.9,0.87639994]
[1644793349128,0.414,2898.7,2897.9,0.57639994]
[1644793349330,0.414,2898.7,2897.9,0.87639994]
[1644793349830,0.86308,2898.8,2897.9,0.57639994]
[1644793350032,0.863091,2898.7,2897.9,0.87639994]
[1644793350232,0.414,2898.6,2897.9,0.57639994]
[1644793350431,0.01133631,2898.5,2898.1,0.01133803]
[1644793350673,0.414,2898.4,2898.1,0.01133803]
[1644793350873,0.01133631,2898.5,2898.4,0.5341235]
[1644793351075,0.42533631,2898.5,2898.4,0.8341235]
[1644793351275,0.414,2898.5,2898.4,0.8341235]
[1644793351675,0.414,2898.5,2898.4,0.5341235]
[1644793352075,4.11554666,2898.5,2898.4,0.5341235]
[1644793352282,4.11554666,2898.5,2898.4,1e-08]
[1644793352283,1.5864,2898.5,2898.4,1e-08]
[1644793353274,1.5864,2898.5,2897.3,0.02910256]
[1644793353275,2.5899108,2898.3,2897.3,0.02910256]
[1644793353476,0.86337,2898.0,2897.3,0.02910256]
[1644793353676,0.5864,2897.9,2897.3,0.02910256]
[1644793353875,0.5864,2897.9,2897.0,0.00395077]
[1644793354275,0.5864,2897.9,2896.7,0.00395077]
[1644793354526,0.8634064,2897.6,2896.7,0.00395077]
[1644793354730,0.414,2897.5,2896.7,0.00395077]
[1644793355129,0.414,2897.5,2896.5,0.00395077]
[1644793355331,0.414,2897.5,2897.0,0.00519016]
[1644793356231,1.44985,2897.5,2896.6,0.00395077]
[1644793356432,0.8634592,2897.4,2897.1,0.00518998]
[1644793356635,0.414,2897.3,2897.1,0.00518998]
[1644793357331,0.86353,2897.2,2896.6,0.00395077]
[1644793357531,0.414,2897.1,2896.4,0.00395077]
[1644793357730,0.414,2897.1,2896.4,0.34931856]
[1644793358177,1.2775223,2897.1,2896.4,0.34931856]
[1644793358578,1.2775223,2897.1,2896.4,0.30395077]
[1644793358781,1.2775223,2897.1,2896.6,0.01134031]
[1644793358979,0.86357,2897.0,2896.6,0.01134031]
[1644793359184,0.414,2896.9,2896.6,0.01134031]
[1644793359581,1.05,2896.8,2896.2,0.04536804]
[1644793359786,0.414,2896.7,2895.3,2.59062]
[1644793359984,0.1726,2896.6,2894.9,0.8613]
[1644793360181,0.414,2896.5,2895.6,0.04320018]
[1644793360680,1.414,2896.5,2895.6,0.04320018]
[1644793361080,0.1726,2896.4,2895.6,0.04320018]
[1644793361284,0.414,2896.3,2895.6,0.04320018]
[1644793361481,3.8697202,2896.3,2895.6,0.04320018]
[1644793361685,3.0057302,2896.3,2895.6,0.04320018]
[1644793362135,0.1726,2896.2,2895.6,0.04320018]
[1644793362335,1.27788,2896.1,2895.6,0.04320018]
[1644793362536,0.414,2896.1,2895.6,0.04320018]
[1644793363739,0.1726,2896.5,2895.9,5.0]
[1644793363940,0.01133572,2897.1,2895.7,0.31134116]
[1644793363941,0.01133572,2897.1,2895.8,26.1556303]
[1644793364137,0.01133572,2897.1,2896.0,0.04092649]
[1644793364341,0.1726,2897.0,2896.0,0.3]
[1644793364537,0.01133572,2897.1,2896.0,0.34092649]
[1644793364839,0.01133711,2897.1,2896.4,0.01134]
[1644793365038,0.01133711,2897.1,2896.5,0.86339]
[1644793365239,0.01133711,2897.1,2896.6,0.6]
[1644793365875,0.1726,2897.4,2896.4,0.3]
[1644793366077,0.01133785,2897.1,2896.5,0.01134036]
[1644793366279,0.1726,2897.0,2896.5,0.01134036]
[1644793366880,0.01133785,2897.1,2896.5,0.01134036]
[1644793367077,0.1726,2897.3,2896.1,1.76721806]
[1644793367278,0.01133764,2897.1,2896.5,0.01134014]
[1644793368278,0.1726,2897.3,2896.4,0.6]
[1644793368479,0.01134293,2897.1,2896.5,0.01134544]
[1644793369435,0.1726,2897.3,2896.2,0.86349]
[1644793369629,0.1726,2897.3,2896.2,1.46349]
[1644793369831,0.01134293,2897.1,2896.5,0.01134544]
[1644793370031,0.1726,2897.0,2896.5,0.01134544]
[1644793370231,0.1726,2897.0,2896.2,1.42483544]
[1644793370932,0.1726,2897.2,2896.2,1.42483544]
[1644793371334,5.25103376,2897.6,2896.2,1.42483544]
[1644793371335,1.0,2897.5,2896.4,0.86344]
[1644793371540,0.1724,2897.9,2896.6,20.28]
[1644793371737,0.1724,2898.4,2896.8,0.01237746]
[1644793371937,2.07328367,2898.9,2896.9,0.414]
[1644793371938,0.1724,2898.8,2896.9,0.414]
[1644793372134,0.1724,2898.8,2897.0,3.5]
[1644793372334,0.01113007,2897.4,2897.1,1.414]
[1644793372533,2.07328367,2898.9,2897.7,0.01218622]
[1644793372733,0.1724,2899.5,2897.8,0.414]
[1644793373190,0.1724,2899.5,2897.8,0.714]
[1644793373382,0.1724,2899.5,2897.8,1.014]
[1644793373583,0.1724,2899.5,2897.9,0.86299]
[1644793373783,0.1724,2899.5,2898.0,0.3]
[1644793373984,0.8629248,2899.4,2898.0,0.3]
[1644793374183,0.1724,2899.3,2897.8,0.3]
[1644793374384,0.86313,2899.0,2897.7,0.61218622]
[1644793374587,0.86313,2899.0,2897.8,3.37542073]
[1644793374785,1.03553,2899.0,2897.8,3.37542073]
[1644793374983,1.03553,2899.0,2897.8,3.32542073]
[1644793375184,2.8986658,2899.0,2897.7,1.47524622]
[1644793375386,0.86313,2898.7,2897.7,0.61218622]
[1644793375590,3.4677254,2898.6,2897.8,0.0039436]
[1644793375786,3.4677254,2898.6,2897.7,0.01218622]
[1644793375787,1.0,2898.5,2897.7,0.01218622]
[1644793375986,3.78944977,2898.4,2897.7,0.01218622]
[1644793376286,1.0,2898.3,2897.7,0.01218622]
[1644793376486,1.8633498,2898.3,2897.7,0.01218622]
[1644793376933,0.01134138,2898.1,2897.7,0.01218622]
[1644793377334,0.1724,2898.0,2897.7,0.01218622]
[1644793377537,0.01134138,2898.1,2897.7,0.01218622]
[1644793378038,1.726476,2898.6,2897.7,0.01218622]
[1644793378236,0.18374156,2898.0,2897.7,0.01218622]
[1644793378434,0.01134156,2898.0,2897.7,0.01218622]
[1644793378835,0.87477966,2898.0,2897.7,0.01218622]
[1644793379036,0.86342,2897.9,2897.7,0.01218622]
[1644793379237,1.03582,2897.9,2897.7,0.01218622]
[1644793379437,2.03582,2897.9,2897.7,0.01218622]
[1644793379642,0.414,2897.8,2897.7,0.01218622]
[1644793380440,0.414,2897.8,2896.7,0.82554622]
[1644793380691,0.86342,2897.6,2896.8,0.0039436]
[1644793380880,1.86342,2897.6,2896.5,0.0039436]
[1644793381081,0.1724,2897.5,2896.5,0.0039436]
[1644793381483,0.1724,2897.7,2896.5,0.0039436]
[1644793381886,0.8635549,2897.1,2896.5,0.0039436]
[1644793382287,0.8635549,2897.1,2896.2,0.7174936]
[1644793382485,0.86362,2897.2,2896.3,0.00394482]
[1644793382684,0.1726,2897.4,2896.3,0.00394482]
[1644793382884,0.8634867,2897.4,2896.4,0.86347]
[1644793383088,1.7269567,2897.4,2896.5,0.00394482]
[1644793383288,1.7269567,2897.4,2896.5,0.30394482]
[1644793383485,1.7269567,2897.4,2896.6,0.00394482]
[1644793383686,0.1724,2897.3,2896.6,0.00394482]
[1644793383888,1.7269567,2897.4,2896.4,0.00394482]
[1644793384089,1.0,2897.5,2896.4,0.86740482]
[1644793384287,0.01133617,2897.5,2896.8,0.0113391]
[1644793385134,1.7267962,2897.6,2896.5,0.06528392]
[1644793385331,0.18373649,2897.5,2896.8,0.01133942]
[1644793385541,0.86349,2897.3,2896.8,0.01133942]
[1644793386335,0.86349,2897.3,2896.3,3.8324074]
[1644793386534,0.86349,2897.3,2896.3,4.1324074]
[1644793386734,0.86349,2897.3,2896.4,1.46913548]
[1644793386934,0.86349,2897.3,2896.5,3.25992063]
[1644793387134,0.86349,2897.3,2896.5,3.55992063]
[1644793387936,0.86349,2897.3,2896.5,3.51521357]
[1644793388192,0.86349,2897.3,2896.5,3.21521357]
[1644793388382,1.7270724,2897.4,2896.4,0.3]
[1644793388582,1.7270724,2897.4,2896.5,1.46911992]
[1644793388781,2.7270724,2897.4,2896.5,1.76911992]
[1644793388981,0.01133717,2897.2,2896.7,0.01133944]
[1644793389781,0.87481717,2897.2,2896.5,0.92478944]
[1644793389982,0.86348,2897.2,2896.6,1.46912495]
[1644793390187,0.87481727,2897.2,2896.7,0.01133955]
[1644793390781,1.73830387,2897.2,2896.7,0.01133955]
[1644793390983,0.01133727,2897.2,2896.7,0.87474955]
[1644793391182,0.86344,2897.3,2896.8,0.3]
[1644793391682,0.86344,2897.3,2896.4,0.3]
[1644793391933,1.7269073,2897.3,2896.5,1.46915186]
[1644793392134,0.86354,2897.1,2896.5,1.46915186]
[1644793392334,0.86354,2897.1,2896.5,0.3]
[1644793392738,0.86354,2897.1,2896.1,0.34035806]
[1644793392934,1.7270756,2897.1,2896.2,1.46917488]
[1644793393336,1.7270756,2897.1,2896.2,2.33268488]
[1644793393535,1.7270756,2897.1,2896.3,1.46917488]
[1644793393735,1.7270756,2897.1,2896.3,1.76917488]
[1644793394035,1.7270756,2897.1,2896.5,0.01134469]
[1644793394036,0.01134316,2896.9,2896.5,0.01134469]
[1644793394237,0.8635356,2897.1,2896.7,1.05]
[1644793394441,4.66334929,2898.0,2896.8,1.46901921]
[1644793394442,0.1726,2898.0,2896.8,1.46901921]
[1644793394640,4.4061364,2898.2,2896.8,1.46901921]
[1644793394641,0.1724,2898.2,2897.2,1.56688666]
[1644793394839,1.035,2898.4,2897.3,1.46901921]
[1644793395041,2.07349145,2898.6,2897.8,25.28]
[1644793395244,2.07349145,2898.6,2898.0,25.59260966]
[1644793395441,4.81018496,2899.5,2898.1,22.005352]
[1644793395442,3.5,2899.3,2898.1,22.005352]
[1644793395709,4.37206976,2899.6,2898.3,20.28]
[1644793395894,0.87206976,2899.6,2898.6,1.72523]
[1644793396095,3.63819997,2899.8,2898.9,25.28]
[1644793396096,0.1724,2899.7,2898.9,25.28]
[1644793396297,0.4921364,2900.4,2898.9,25.28]
[1644793396298,0.87206976,2899.9,2899.0,24.78]
[1644793396495,0.87206976,2900.0,2899.1,21.14252]
[1644793396693,1.04446976,2900.0,2899.3,21.1423827]
[1644793396895,1.31018496,2900.2,2899.3,21.1423827]
[1644793396896,0.87206976,2900.2,2899.5,20.28]
[1644793397094,0.87206976,2900.4,2899.5,20.58]
[1644793397296,0.87206976,2900.4,2899.6,5.28799218]
[1644793397498,0.87206976,2900.0,2899.4,0.4724]
[1644793397699,0.87206976,2899.8,2899.4,0.4724]
[1644793397900,1.04446976,2899.9,2899.4,0.1724]
[1644793398095,0.1724,2899.7,2899.4,0.1724]
[1644793398295,0.87206976,2899.9,2899.4,0.1724]
[1644793398498,0.87206976,2900.0,2898.7,3.20413]
[1644793398698,0.0113384,2899.7,2898.8,0.86262]
[1644793398998,0.0113384,2899.7,2899.0,0.86263]
[1644793399197,0.0113384,2899.7,2899.0,1.16263]
[1644793399631,0.0113384,2899.7,2898.7,1.1646196]
[1644793399632,0.1724,2899.7,2898.7,0.0019896]
[1644793399831,1.0,2900.0,2898.7,0.0019896]
[1644793399832,4.54446976,2899.9,2898.7,0.0019896]
[1644793400033,0.01133875,2899.5,2898.7,0.0019896]
[1644793400234,0.1724,2899.4,2898.7,0.0019896]
[1644793400438,0.01133875,2899.5,2898.7,0.0019896]
[1644793400634,0.1724,2899.3,2898.7,0.0019896]
[1644793400835,0.1724,2899.4,2898.7,0.0019896]
[1644793401035,0.1724,2899.8,2898.7,0.0019896]
[1644793401236,0.0113392,2899.2,2898.7,0.0019896]
[1644793402135,0.1724,2899.9,2898.7,0.0019896]
[1644793402335,3.60266749,2900.1,2898.8,0.86272]
[1644793402336,0.01133946,2899.1,2898.8,0.86272]
[1644793402538,0.01133946,2899.1,2898.8,0.3]
[1644793402740,0.01133946,2899.1,2898.7,0.0019896]
[1644793403185,0.1724,2899.0,2898.7,0.0019896]
[1644793403580,0.01133955,2899.0,2898.7,0.0019896]
[1644793404384,0.1724,2899.3,2898.7,0.0019896]
[1644793404784,0.01133964,2899.0,2898.7,0.0019896]
[1644793405590,0.1724,2899.4,2898.7,0.0019896]
[1644793405786,0.1724,2899.5,2898.7,0.0019896]
[1644793405988,0.01133964,2899.0,2898.7,0.0019896]
[1644793406787,0.1724,2899.6,2898.7,0.0019896]
[1644793407231,0.01133964,2899.0,2898.7,0.0019896]
[1644793408035,1.01026973,2900.2,2898.7,5.0019896]
[1644793408036,0.1724,2899.9,2898.7,5.0019896]
[1644793408235,0.1724,2899.9,2898.9,5.0]
[1644793408433,0.31059997,2900.2,2899.0,21.28]
[1644793408633,0.13819997,2900.2,2899.0,21.44252]
[1644793408831,0.13819997,2900.2,2899.1,1.0]
[1644793409234,0.13819997,2900.2,2899.0,2.0250664]
[1644793409433,0.1724,2900.1,2899.0,2.0250664]
[1644793409636,0.01133822,2899.8,2898.8,1.0]
[1644793409833,0.1724,2899.7,2898.9,0.138016]
[1644793410232,0.1724,2899.7,2898.7,0.0019896]
[1644793410691,0.01133884,2899.4,2898.7,0.0019896]
[1644793411085,0.01133884,2899.4,2899.0,0.8627168]
[1644793411289,0.1724,2899.3,2898.7,0.0019896]
[1644793411886,1.1724,2899.5,2898.7,0.0019896]
[1644793412086,0.01133937,2899.1,2898.7,0.0019896]
[1644793412286,0.1724,2899.0,2898.7,0.0019896]
[1644793413087,0.01133964,2899.0,2898.7,0.0019896]
[1644793413289,0.1724,2898.9,2898.7,0.0019896]
[1644793413891,0.01133964,2899.0,2898.7,0.0019896]
[1644793414091,3.41015757,2899.2,2898.7,0.0019896]
[1644793414289,0.414,2899.4,2898.7,0.0019896]
[1644793414534,0.01116963,2898.9,2898.7,0.0019896]
[1644793414738,0.414,2898.8,2898.7,0.0019896]
[1644793414933,2.28348,2898.8,2898.7,0.0019896]
[1644793415136,2.58348,2898.8,2898.7,0.0019896]
[1644793415334,3.58348,2898.8,2898.7,0.0019896]
[1644793415934,3.58348,2898.8,2897.5,0.00394258]
[1644793415935,0.86339,2898.4,2897.5,0.00394258]
[1644793416141,0.5864,2898.3,2897.3,0.00394258]
[1644793416935,4.67395428,2898.2,2897.3,0.00394258]
[1644793417135,0.414,2898.1,2897.3,0.00394258]
[1644793417337,3.67451134,2898.0,2897.3,0.00394258]
[1644793417535,0.414,2897.9,2897.3,0.00394258]
[1644793417736,0.1724,2897.8,2897.3,0.00394258]
[1644793418481,3.63107556,2897.8,2897.3,0.00394258]
[1644793418686,0.1724,2897.8,2897.3,0.00394258]
[1644793418883,0.414,2897.7,2897.3,0.00394258]
[1644793419087,3.76730902,2897.6,2897.2,1.56688666]
[1644793419286,0.414,2897.5,2897.2,1.56688666]
[1644793419484,3.78852845,2897.4,2897.2,1.56688666]
[1644793419683,0.414,2897.3,2897.2,1.56688666]
[1644793421087,0.414,2897.3,2897.2,1.86688666]
[1644793422134,0.414,2897.3,2897.2,1.56688666]
[1644793423733,0.414,2897.3,2897.2,1.86688666]
[1644793424336,0.414,2897.3,2897.2,1.56688666]
[1644793425687,0.414,2897.3,2897.2,1.86688666]
[1644793426882,2.14085,2897.9,2897.2,1.86688666]
[1644793427085,0.3,2897.8,2897.4,0.8632996]
[1644793427284,0.414,2897.9,2897.5,0.3]
[1644793427488,0.414,2898.3,2897.5,0.3]
[1644793427785,10.19766791,2898.7,2897.2,1.86688666]
[1644793427786,0.1724,2898.6,2897.2,1.86688666]
[1644793428586,0.414,2898.5,2897.4,1.7264397]
[1644793428887,3.62065425,2898.4,2897.5,0.3]
[1644793429086,0.86334,2898.2,2897.5,0.3]
[1644793429292,0.1724,2898.1,2897.2,1.86688666]
[1644793429532,0.1724,2898.1,2897.5,0.8632786]
[1644793429732,0.1724,2898.1,2897.5,1.1632786]
[1644793430231,1.4724,2898.1,2897.5,1.1632786]
[1644793430432,1.3,2898.1,2897.5,1.1632786]
[1644793430633,3.73081404,2898.0,2897.5,1.1632786]
[1644793430836,3.55841404,2898.0,2897.5,1.1632786]
[1644793431034,0.1724,2897.9,2897.5,1.1632786]
[1644793431233,3.76182274,2898.2,2897.5,1.1632786]
[1644793431434,4.08742274,2898.2,2897.5,1.1632786]
[1644793431634,0.498,2898.2,2897.5,1.1632786]
[1644793432034,3.85703903,2898.2,2897.5,1.1632786]
[1644793432235,0.498,2898.2,2897.5,1.1632786]
[1644793432838,0.86326,2898.1,2897.5,1.1632786]
[1644793433198,0.011346,2898.0,2897.5,1.1632786]
[1644793433386,0.011346,2898.0,2897.5,0.3]
[1644793433986,0.1724,2898.1,2897.5,0.3]
[1644793434188,0.87468618,2897.9,2897.5,1.1633372]
[1644793434392,0.498,2897.8,2897.5,0.3]
[1644793434586,0.498,2897.8,2897.2,1.86688666]
[1644793435387,0.01134663,2897.6,2897.3,0.8633498]
[1644793435591,0.498,2897.5,2897.3,0.8633498]
[1644793435790,0.498,2897.5,2897.2,1.56688666]
[1644793435791,0.1724,2897.4,2897.2,1.56688666]
[1644793435988,0.498,2897.3,2897.2,1.56688666]
[1644793436588,1.05,2897.2,2897.1,1.68408383]
[1644793436792,0.00101744,2896.0,2895.6,7.0795]
[1644793437041,0.00101744,2896.0,2895.6,3.3098]
[1644793437233,0.00101744,2896.0,2895.3,3.6614]
[1644793437234,0.00101744,2896.0,2895.7,0.04263176]
[1644793437435,0.86488744,2896.0,2895.7,0.04263176]
[1644793437633,0.86488744,2896.0,2895.6,0.04320018]
[1644793438236,0.498,2895.9,2895.6,0.04320018]
[1644793438436,1.362,2895.9,2895.6,0.04320018]
[1644793438635,0.86396,2895.8,2895.6,0.04320018]
[1644793439235,0.86396,2895.8,2895.6,0.34320018]
[1644793439434,0.498,2895.9,2895.6,2.07085128]
[1644793439640,0.1726,2895.8,2895.6,2.93464708]
[1644793439935,0.1726,2895.8,2895.6,0.34320018]
[1644793440337,0.498,2895.9,2895.6,0.04320018]
[1644793440790,0.498,2895.9,2895.6,2.0276724]
[1644793441388,0.498,2895.9,2895.6,2.03902748]
[1644793442089,0.498,2895.9,2895.6,2.90283508]
[1644793442292,0.498,2895.9,2895.6,2.89148]
[1644793442690,0.498,2895.9,2895.6,2.9022089]
[1644793443091,0.498,2895.9,2895.6,1.1745365]
[1644793443491,0.498,2895.9,2895.6,1.1638076]
[1644793443893,0.498,2895.9,2895.6,1.1745365]
[1644793444093,1.36191,2895.9,2895.6,1.1745365]
[1644793444532,3.36653536,2895.8,2895.6,1.1745365]
[1644793444735,0.498,2895.7,2895.6,0.8638076]
[1644793444939,0.498,2895.7,2895.4,0.04433703]
[1644793444940,5.46475761,2895.7,2895.4,0.04433703]
[1644793445136,5.46475761,2895.7,2895.6,0.05392908]
[1644793445137,5.21865217,2895.7,2895.6,0.05392908]
[1644793445434,4.21865217,2895.7,2895.6,0.05392908]
[1644793445633,5.39125217,2895.7,2895.6,0.05392908]
[1644793445935,5.39125217,2895.7,2895.3,0.00394452]
[1644793445936,1.91434,2895.6,2895.3,0.00394452]
[1644793446133,1.91434,2895.6,2895.2,0.01363984]
[1644793446134,5.87772195,2895.5,2895.2,0.01363984]
[1644793446332,1.24611829,2895.4,2895.2,0.01363984]
[1644793446533,4.26030853,2895.3,2895.2,0.01363984]
[1644793446733,4.56030853,2895.3,2895.2,0.01363984]
[1644793446932,1.798,2895.3,2895.2,0.01363984]
[1644793447131,5.32654261,2895.3,2895.2,0.01363984]
[1644793447337,5.40006967,2895.3,2895.2,0.01363984]
[1644793447538,5.32654261,2895.3,2895.2,0.01363984]
[1644793448296,0.86442,2895.1,2894.5,0.02423302]
[1644793448494,5.0,2894.7,2894.3,0.00394452]
[1644793448690,11.34054821,2894.6,2893.5,0.17807252]
[1644793448895,11.219,2894.2,2893.5,0.17807252]
[1644793449190,0.86469,2894.0,2893.5,0.17807252]
[1644793449387,7.94838,2893.8,2893.5,0.17807252]
[1644793449688,6.219,2893.6,2893.5,0.17807252]
[1644793449886,6.717,2893.6,2893.5,0.17807252]
[1644793450091,7.017,2893.6,2893.5,0.17807252]
[1644793450291,7.017,2893.6,2893.1,0.15469393]
[1644793450292,1.05,2893.5,2893.1,0.15469393]
[1644793450492,0.498,2893.4,2893.1,0.15469393]
[1644793450693,0.498,2893.4,2892.9,0.0168833]
[1644793450694,6.219,2893.2,2892.9,0.0168833]
[1644793450891,6.219,2893.2,2892.5,1.3977117]
[1644793450892,6.219,2893.0,2892.5,0.5348117]
[1644793451089,6.219,2892.8,2892.5,0.5348117]
[1644793451291,1.36316,2892.7,2892.5,0.5348117]
[1644793451492,2.53596,2892.7,2892.5,0.5348117]
[1644793451690,2.53596,2892.7,2892.6,9.5e-05]
[1644793451942,2.53596,2892.7,2891.8,0.035336]
[1644793451943,0.45,2892.5,2891.8,0.035336]
[1644793452142,0.498,2892.4,2891.8,0.035336]
[1644793452342,0.86521,2892.2,2891.8,0.035336]
[1644793452543,0.498,2892.1,2891.8,0.035336]
[1644793452953,6.717,2892.1,2891.8,0.035336]
[1644793453144,0.498,2892.1,2891.8,0.035336]
[1644793453541,0.498,2892.1,2891.9,1.729857]
[1644793453743,0.498,2892.1,2892.0,0.3173399]
[1644793453941,0.498,2892.1,2892.0,0.3183399]
[1644793454543,0.498,2892.1,2892.0,0.0173399]
[1644793455346,0.498,2892.1,2891.9,0.01134076]
[1644793455347,1.05,2892.0,2891.9,0.01134076]
[1644793455542,1.05,2892.0,2891.8,0.035336]
[1644793455543,5.7490634,2892.0,2891.8,0.035336]
[1644793455787,4.59311091,2891.9,2891.8,0.035336]
[1644793455984,5.26391091,2891.9,2891.8,0.035336]
[1644793456187,6.60519686,2891.9,2891.8,0.035336]
[1644793456585,1.05,2891.8,2891.5,0.04536986]
[1644793456786,0.86537,2891.6,2891.4,0.01115227]
[1644793456985,0.86537,2891.6,2890.2,0.017492]
[1644793456986,4.10614606,2891.5,2891.3,0.04537127]
[1644793457185,0.498,2891.5,2891.3,0.04537127]
[1644793457589,3.50637356,2891.4,2891.3,0.04537127]
[1644793457789,2.36341,2891.4,2891.3,0.04537127]
[1644793457991,2.36341,2891.4,2890.2,0.017492]
[1644793458184,1.0,2891.3,2890.2,0.017492]
[1644793458387,0.6709,2891.2,2890.2,0.017492]
[1644793458889,0.8659,2890.8,2890.2,0.017492]
[1644793459091,1.3639,2890.7,2890.2,0.017492]
[1644793459287,0.3,2890.6,2890.2,0.017492]
[1644793459533,0.3,2890.6,2890.5,0.0113433]
[1644793459733,0.415,2890.6,2890.5,0.0113433]
[1644793460332,4.00863926,2890.6,2890.2,0.017492]
[1644793460541,4.00384555,2890.5,2890.2,0.017492]
[1644793460738,4.00384555,2890.5,2890.0,0.04538035]
[1644793460739,1.05,2890.4,2890.0,0.04538035]
[1644793460934,1.05,2890.4,2889.7,0.0168065]
[1644793460935,4.78288789,2890.3,2889.7,0.0168065]
[1644793461235,0.86596,2890.2,2889.7,0.0168065]
[1644793461439,4.4424539,2890.1,2889.7,0.0168065]
[1644793461834,1.0,2890.0,2889.7,0.0168065]
[1644793462037,1.05,2889.8,2889.6,0.0521553]
[1644793462237,4.51293797,2889.7,2888.8,0.0156015]
[1644793462434,0.415,2889.6,2888.8,0.0156015]
[1644793462635,3.73763601,2889.5,2888.8,0.0156015]
[1644793462834,0.415,2889.4,2888.8,0.0156015]
[1644793463037,3.42506587,2889.3,2888.8,0.0156015]
[1644793463287,0.415,2889.2,2888.8,0.0156015]
[1644793463495,0.415,2889.2,2888.5,0.0172411]
[1644793463496,1.0674,2889.1,2888.2,0.8652]
[1644793463687,1.0674,2889.1,2888.1,0.0174799]
[1644793463688,3.915,2889.0,2888.1,0.0174799]
[1644793463887,5.192,2888.7,2888.3,0.04149491]
[1644793464089,1.1729,2888.9,2888.0,0.00859396]
[1644793464090,5.192,2888.4,2888.0,0.00859396]
[1644793464285,5.192,2888.4,2888.0,0.02878284]
[1644793464286,0.415,2888.3,2888.0,0.02878284]
[1644793464485,1.5,2888.2,2888.0,0.02878284]
[1644793464687,8.56361,2888.1,2887.4,0.00394142]
[1644793464885,8.56361,2888.1,2887.5,0.00394152]
[1644793464886,6.192,2888.0,2887.5,0.00394152]
[1644793465089,0.5881,2887.9,2886.9,0.0352023]
[1644793465388,0.86665,2887.7,2886.9,0.0352023]
[1644793465590,0.415,2887.6,2886.9,0.0352023]
[1644793465785,3.79767377,2887.5,2886.9,0.0352023]
[1644793465987,0.5881,2887.4,2886.9,0.0352023]
[1644793466186,3.87813568,2887.3,2887.2,4.72e-05]
[1644793466490,1.7337,2887.1,2886.1,0.00394152]
[1644793466786,3.98657152,2887.0,2886.0,0.0020127]
[1644793467040,4.85339152,2887.0,2886.0,0.0020127]
[1644793467238,3.98657152,2887.0,2886.0,0.0020127]
[1644793467438,0.86679,2886.9,2886.0,0.0020127]
[1644793467640,3.84787589,2886.8,2886.0,0.0020127]
[1644793467838,0.86679,2886.9,2886.0,0.0020127]
[1644793467839,2.14882,2886.7,2886.0,0.0020127]
[1644793468068,0.365,2886.6,2886.0,0.0020127]
[1644793468247,0.415,2886.5,2886.0,0.0020127]
[1644793468441,0.86693,2886.3,2886.0,0.0020127]
[1644793468645,0.415,2886.2,2886.0,0.0020127]
[1644793468841,0.5881,2886.2,2886.0,0.0020127]
[1644793469240,1.45519,2886.2,2886.0,0.00701571]
[1644793469440,2.45519,2886.2,2886.0,0.00701571]